fUSD/lending_fUSD_20250616
["ID","MTS","AMOUNT","RATE_DAILY","PERIOD"]
[366141792,1750085432163,-2246.13364994,0.00016381,2]
[366141793,1750085432173,-4246.28587664,0.00016397,2]
[366141794,1750085432183,-303.98,0.00016399,2]
[366141795,1750085432193,-500.0,0.00016399,2]
[366141796,1750085432203,-500.0,0.00016399,2]
[366141797,1750085432213,-418.41270305,0.00016399,2]
[366141798,1750085432222,-379.8414376,0.00016399,2]
[366141799,1750085432231,-526.68513447,0.00016399,2]
[366141800,1750085432241,-960.07684134,0.00016399,2]
[366141801,1750085432251,-21446.80545945,0.000164,2]
[366141802,1750085432280,-2654.10000001,0.000164,2]
[366141804,1750085432291,-1282.33922951,0.000164,2]
[366141806,1750085432303,-670.543108,0.000164,2]
[366141808,1750085432314,-1095.0,0.000164,2]
[366141812,1750085432349,-1500.0,0.000164,2]
[366141814,1750085432361,-298.86,0.000164,2]
[366141816,1750085432372,-438.32921205,0.000164,2]
[366141840,1750085432672,-419.63577014,0.000164,2]
[366141845,1750085432714,-82215.16210472,0.000164,2]
[366141875,1750085437451,-845.75925691,0.00015842,2]
[366141876,1750085437463,-91.22693523,0.00015842,2]
[366141878,1750085437473,-2564.61309814,0.000164,2]
[366141880,1750085437484,-10778.0,0.000164,2]
[366141881,1750085437496,-4238.58580186,0.000164,2]
[366141883,1750085437508,-171537.7317754,0.000164,2]
[366141884,1750085437518,-303.14,0.00016416,2]
[366141886,1750085437528,-151.0,0.00016422,2]
[366141888,1750085437538,-350.0,0.00016422,2]
[366141890,1750085437548,-150.42,0.00016428,2]
[366141892,1750085437560,-184.22993323,0.00016428,2]
[366141893,1750085437571,-819.138446,0.00016431,2]
[366141895,1750085437581,-186.76843489,0.00016433,2]
[366141896,1750085437591,-287.5305995,0.00016433,2]
[366141898,1750085437602,-208.64525634,0.00016433,2]
[366141900,1750085437613,-189.05731568,0.00016433,2]
[366141902,1750085437623,-14552.8748324,0.00016434,2]
[366141903,1750085437633,-36800.0125041,0.00016434,2]
[366141929,1750085438048,-1400.0,0.00016434,2]
[366141934,1750085438092,-373.8029958,0.00016434,2]
[366141936,1750085438102,-11117.72740374,0.00016437,2]
[366142086,1750085439575,-538.4114684,0.000163,2]
[366142132,1750085440031,-921.0098316,0.000163,2]
[366142135,1750085440042,-191.2983665,0.00016399,2]
[366142138,1750085440070,-308.7016335,0.00016399,2]
[366142140,1750085440081,-500.0,0.00016399,2]
[366142142,1750085440092,-500.0,0.00016399,2]
[366142144,1750085440104,-415.22985073,0.00016399,2]
[366142146,1750085440115,-500.0,0.00016399,2]
[366142149,1750085440127,-375.50706094,0.00016399,2]
[366142151,1750085440138,-500.0,0.00016399,2]
[366142153,1750085440151,-214.00678634,0.00016399,2]
[366142155,1750085440163,-51202.5546685,0.00016437,2]
[366142157,1750085440177,-19155.0761698,0.00016437,2]
[366142159,1750085440189,-504.66,0.00016438,2]
[366142161,1750085440202,-496.66,0.00016438,2]
[366142164,1750085440213,-169.313953,0.00016438,2]
[366142166,1750085440224,-152.401802,0.00016438,2]
[366142168,1750085440234,-163.117731,0.00016438,2]
[366142170,1750085440245,-490.0,0.00016438,2]
[366142172,1750085440255,-490.0,0.00016438,2]
[366142174,1750085440266,-360.92753856,0.00016438,2]
[366142176,1750085440277,-490.0,0.00016438,2]
[366142177,1750085440288,-491.35904544,0.00016438,2]
[366142178,1750085440298,-618.41489746,0.00016438,2]
[366142179,1750085440309,-490.0,0.00016438,2]
[366142180,1750085440319,-491.51373169,0.00016438,2]
[366142181,1750085440330,-488.85326175,0.00016438,2]
[366142182,1750085440341,-490.59087026,0.00016438,2]
[366142183,1750085440351,-490.0,0.00016438,2]
[366142184,1750085440361,-490.0,0.00016438,2]
[366142185,1750085440371,-490.0,0.00016438,2]
[366142186,1750085440381,-490.0,0.00016438,2]
[366142188,1750085440391,-490.0,0.00016438,2]
[366142189,1750085440402,-490.0,0.00016438,2]
[366142191,1750085440412,-490.0,0.00016438,2]
[366142193,1750085440422,-490.0,0.00016438,2]
[366142195,1750085440432,-425.97651011,0.00016438,2]
[366142197,1750085440442,-490.0,0.00016438,2]
[366142199,1750085440452,-490.0,0.00016438,2]
[366142201,1750085440462,-490.0,0.00016438,2]
[366142204,1750085440473,-490.0,0.00016438,2]
[366142206,1750085440484,-490.0,0.00016438,2]
[366142208,1750085440494,-490.0,0.00016438,2]
[366142210,1750085440511,-490.0,0.00016438,2]
[366142213,1750085440523,-490.0,0.00016438,2]
[366142215,1750085440534,-490.0,0.00016438,2]
[366142217,1750085440545,-490.0,0.00016438,2]
[366142219,1750085440556,-490.0,0.00016438,2]
[366142221,1750085440572,-490.0,0.00016438,2]
[366142223,1750085440583,-490.0,0.00016438,2]
[366142226,1750085440596,-490.0,0.00016438,2]
[366142228,1750085440608,-490.0,0.00016438,2]
[366142230,1750085440619,-490.0,0.00016438,2]
[366142232,1750085440631,-490.0,0.00016438,2]
[366142234,1750085440648,-508.57411527,0.00016438,2]
[366142236,1750085440660,-151.0,0.00016438,2]
[366142239,1750085440671,-490.0,0.00016438,2]
[366142241,1750085440682,-681.81,0.00016438,2]
[366142243,1750085440693,-490.0,0.00016438,2]
[366142245,1750085440704,-490.0,0.00016438,2]
[366142247,1750085440715,-490.0,0.00016438,2]
[366142249,1750085440727,-490.0,0.00016438,2]
[366142251,1750085440737,-490.0,0.00016438,2]
[366142253,1750085440748,-490.0,0.00016438,2]
[366142255,1750085440759,-490.0,0.00016438,2]
[366142257,1750085440769,-151.0,0.00016438,2]
[366142260,1750085440780,-490.0,0.00016438,2]
[366142262,1750085440791,-151.0,0.00016438,2]
[366142264,1750085440803,-490.0,0.00016438,2]
[366142266,1750085440814,-490.0,0.00016438,2]
[366142268,1750085440825,-490.0,0.00016438,2]
[366142270,1750085440836,-490.0,0.00016438,2]
[366142272,1750085440846,-490.0,0.00016438,2]
[366142274,1750085440856,-588.0,0.00016438,2]
[366142276,1750085440867,-490.0,0.00016438,2]
[366142279,1750085440877,-885.29,0.00016438,2]
[366142281,1750085440888,-151.0,0.00016438,2]
[366142283,1750085440899,-490.0,0.00016438,2]
[366142285,1750085440909,-490.0,0.00016438,2]
[366142287,1750085440920,-597.41,0.00016438,2]
[366142289,1750085440930,-490.0,0.00016438,2]
[366142292,1750085440947,-490.0,0.00016438,2]
[366142294,1750085440958,-554.43,0.00016438,2]
[366142296,1750085440969,-490.0,0.00016438,2]
[366142298,1750085440979,-490.0,0.00016438,2]
[366142300,1750085440991,-490.0,0.00016438,2]
[366142302,1750085441002,-490.0,0.00016438,2]
[366142304,1750085441012,-490.0,0.00016438,2]
[366142306,1750085441023,-490.0,0.00016438,2]
[366142309,1750085441034,-584.62,0.00016438,2]
[366142311,1750085441045,-490.0,0.00016438,2]
[366142313,1750085441056,-852.27,0.00016438,2]
[366142315,1750085441067,-490.0,0.00016438,2]
[366142317,1750085441078,-490.0,0.00016438,2]
[366142319,1750085441088,-762.86,0.00016438,2]
[366142321,1750085441099,-567.14,0.00016438,2]
[366142323,1750085441110,-490.0,0.00016438,2]
[366142325,1750085441120,-490.0,0.00016438,2]
[366142327,1750085441131,-603.84928457,0.00016438,2]
[366142330,1750085441142,-490.0,0.00016438,2]
[366142332,1750085441153,-490.0,0.00016438,2]
[366142334,1750085441164,-169.76277888,0.00016438,2]
[366142336,1750085441175,-718.34,0.00016438,2]
[366142338,1750085441186,-308.547349,0.00016438,2]
[366142340,1750085441196,-490.0,0.00016438,2]
[366142342,1750085441207,-490.0,0.00016438,2]
[366142344,1750085441218,-490.0,0.00016438,2]
[366142346,1750085441229,-308.547349,0.00016438,2]
[366142349,1750085441239,-490.0,0.00016438,2]
[366142351,1750085441250,-490.0,0.00016438,2]
[366142353,1750085441260,-490.0,0.00016438,2]
[366142355,1750085441270,-833.26,0.00016438,2]
[366142357,1750085441280,-490.0,0.00016438,2]
[366142359,1750085441292,-781.88,0.00016438,2]
[366142361,1750085441303,-1360.97,0.00016438,2]
[366142363,1750085441314,-490.0,0.00016438,2]
[366142365,1750085441324,-490.0,0.00016438,2]
[366142367,1750085441334,-784.83,0.00016438,2]
[366142369,1750085441345,-660.95,0.00016438,2]
[366142371,1750085441355,-490.0,0.00016438,2]
[366142373,1750085441367,-490.0,0.00016438,2]
[366142375,1750085441377,-543.67,0.00016438,2]
[366142378,1750085441393,-975.13,0.00016438,2]
[366142380,1750085441403,-490.0,0.00016438,2]
[366142382,1750085441413,-1377.02,0.00016438,2]
[366142384,1750085441424,-748.44,0.00016438,2]
[366142386,1750085441435,-490.0,0.00016438,2]
[366142388,1750085441445,-490.0,0.00016438,2]
[366142390,1750085441456,-490.0,0.00016438,2]
[366142392,1750085441467,-490.0,0.00016438,2]
[366142394,1750085441477,-490.0,0.00016438,2]
[366142396,1750085441487,-746.95,0.00016438,2]
[366142399,1750085441498,-490.0,0.00016438,2]
[366142401,1750085441509,-677.24,0.00016438,2]
[366142403,1750085441519,-490.0,0.00016438,2]
[366142405,1750085441530,-490.0,0.00016438,2]
[366142407,1750085441541,-490.0,0.00016438,2]
[366142409,1750085441551,-490.0,0.00016438,2]
[366142411,1750085441563,-490.0,0.00016438,2]
[366142413,1750085441574,-490.0,0.00016438,2]
[366142415,1750085441584,-490.0,0.00016438,2]
[366142417,1750085441594,-490.0,0.00016438,2]
[366142419,1750085441605,-623.63,0.00016438,2]
[366142421,1750085441616,-490.0,0.00016438,2]
[366142423,1750085441626,-490.0,0.00016438,2]
[366142425,1750085441637,-490.0,0.00016438,2]
[366142427,1750085441647,-490.0,0.00016438,2]
[366142429,1750085441657,-490.0,0.00016438,2]
[366142431,1750085441667,-388.49574028,0.00016438,2]
[366142433,1750085441678,-490.0,0.00016438,2]
[366142435,1750085441688,-490.0,0.00016438,2]
[366142437,1750085441698,-1233.02,0.00016438,2]
[366142440,1750085441710,-490.0,0.00016438,2]
[366142442,1750085441719,-826.57,0.00016438,2]
[366142444,1750085441729,-816.23,0.00016438,2]
[366142467,1750085441946,-490.0,0.00016438,2]
[366142470,1750085441958,-1047.89,0.00016438,2]
[366142472,1750085441967,-490.0,0.00016438,2]
[366142474,1750085441977,-490.0,0.00016438,2]
[366142476,1750085441987,-503.22286444,0.00016438,2]
[366142478,1750085441997,-490.0,0.00016438,2]
[366142480,1750085442007,-829.97,0.00016438,2]
[366142482,1750085442017,-490.0,0.00016438,2]
[366142484,1750085442027,-322.11733847,0.00016438,2]
[366142486,1750085442037,-151.0,0.00016438,2]
[366142488,1750085442047,-841.76,0.00016438,2]
[366142490,1750085442059,-490.0,0.00016438,2]
[366142492,1750085442068,-300.0,0.00016438,2]
[366142494,1750085442078,-490.0,0.00016438,2]
[366142496,1750085442088,-310.19505661,0.00016438,2]
[366142498,1750085442098,-232.619101,0.00016438,2]
[366142500,1750085442107,-490.0,0.00016438,2]
[366142502,1750085442118,-671.11,0.00016438,2]
[366142504,1750085442128,-490.0,0.00016438,2]
[366142506,1750085442138,-490.0,0.00016438,2]
[366142508,1750085442147,-1387.46,0.00016438,2]
[366142510,1750085442157,-523.35584212,0.00016438,2]
[366142512,1750085442167,-695.69,0.00016438,2]
[366142515,1750085442178,-1251.39,0.00016438,2]
[366142517,1750085442188,-490.0,0.00016438,2]
[366142518,1750085442197,-22.24177287,0.00016438,2]
[366142527,1750085442242,-618.80822713,0.00016438,2]
[366142529,1750085442253,-524.9,0.00016438,2]
[366142531,1750085442262,-492.24241165,0.00016438,2]
[366142533,1750085442272,-490.0,0.00016438,2]
[366142536,1750085442283,-490.0,0.00016438,2]
[366142537,1750085442292,-706.37,0.00016438,2]
[366142539,1750085442302,-490.0,0.00016438,2]
[366142542,1750085442313,-493.98889462,0.00016438,2]
[366142544,1750085442322,-490.0,0.00016438,2]
[366142547,1750085442332,-490.0,0.00016438,2]
[366142549,1750085442341,-490.0,0.00016438,2]
[366142552,1750085442351,-494.27317248,0.00016438,2]
[366142556,1750085442360,-490.0,0.00016438,2]
[366142559,1750085442370,-1124.21,0.00016438,2]
[366142562,1750085442380,-490.0,0.00016438,2]
[366142565,1750085442389,-490.0,0.00016438,2]
[366142567,1750085442399,-870.4,0.00016438,2]
[366142569,1750085442409,-490.0,0.00016438,2]
[366142571,1750085442419,-490.0,0.00016438,2]
[366142573,1750085442429,-490.0,0.00016438,2]
[366142575,1750085442439,-528.44,0.00016438,2]
[366142577,1750085442449,-690.67,0.00016438,2]
[366142580,1750085442459,-490.0,0.00016438,2]
[366142582,1750085442469,-490.0,0.00016438,2]
[366142584,1750085442479,-490.0,0.00016438,2]
[366142586,1750085442488,-490.0,0.00016438,2]
[366142589,1750085442498,-490.0,0.00016438,2]
[366142591,1750085442508,-490.0,0.00016438,2]
[366142594,1750085442518,-490.0,0.00016438,2]
[366142596,1750085442527,-490.0,0.00016438,2]
[366142598,1750085442538,-605.9,0.00016438,2]
[366142600,1750085442548,-490.0,0.00016438,2]
[366142602,1750085442559,-490.0,0.00016438,2]
[366142604,1750085442572,-490.0,0.00016438,2]
[366142607,1750085442582,-490.0,0.00016438,2]
[366142609,1750085442591,-1054.09,0.00016438,2]
[366142611,1750085442601,-151.0,0.00016438,2]
[366142612,1750085442611,-1023.66,0.00016438,2]
[366142615,1750085442620,-207.69185,0.00016438,2]
[366142616,1750085442630,-490.0,0.00016438,2]
[366142618,1750085442640,-151.0,0.00016438,2]
[366142620,1750085442651,-490.0,0.00016438,2]
[366142623,1750085442667,-490.0,0.00016438,2]
[366142625,1750085442676,-490.0,0.00016438,2]
[366142627,1750085442687,-151.0,0.00016438,2]
[366142629,1750085442696,-494.37,0.00016438,2]
[366142631,1750085442706,-490.0,0.00016438,2]
[366142633,1750085442716,-490.0,0.00016438,2]
[366142635,1750085442726,-698.99,0.00016438,2]
[366142637,1750085442737,-490.0,0.00016438,2]
[366142639,1750085442747,-490.0,0.00016438,2]
[366142641,1750085442757,-771.68,0.00016438,2]
[366142643,1750085442767,-1688.72,0.00016438,2]
[366142646,1750085442777,-490.0,0.00016438,2]
[366142647,1750085442787,-490.0,0.00016438,2]
[366142650,1750085442798,-490.0,0.00016438,2]
[366142652,1750085442808,-1005.52,0.00016438,2]
[366142654,1750085442817,-722.385856,0.00016438,2]
[366142656,1750085442828,-490.0,0.00016438,2]
[366142658,1750085442838,-796.85,0.00016438,2]
[366142660,1750085442847,-490.0,0.00016438,2]
[366142662,1750085442857,-722.385856,0.00016438,2]
[366142664,1750085442866,-490.87,0.00016438,2]
[366142666,1750085442876,-490.0,0.00016438,2]
[366142668,1750085442886,-490.0,0.00016438,2]
[366142671,1750085442897,-490.0,0.00016438,2]
[366142674,1750085442907,-490.0,0.00016438,2]
[366142677,1750085442916,-151.0,0.00016438,2]
[366142679,1750085442925,-490.0,0.00016438,2]
[366142681,1750085442935,-851.3,0.00016438,2]
[366142683,1750085442945,-504.9,0.00016438,2]
[366142685,1750085442955,-151.0,0.00016438,2]
[366142687,1750085442965,-490.0,0.00016438,2]
[366142689,1750085442976,-490.0,0.00016438,2]
[366142691,1750085442986,-1000.12,0.00016438,2]
[366142693,1750085442996,-1897.83,0.00016438,2]
[366142695,1750085443006,-151.0,0.00016438,2]
[366142697,1750085443016,-490.0,0.00016438,2]
[366142699,1750085443027,-799.66,0.00016438,2]
[366142701,1750085443037,-951.18,0.00016438,2]
[366142703,1750085443048,-504.6660565,0.00016438,2]
[366142705,1750085443057,-537.1,0.00016438,2]
[366142707,1750085443067,-728.09,0.00016438,2]
[366142709,1750085443077,-1517.04,0.00016438,2]
[366142711,1750085443087,-490.0,0.00016438,2]
[366142713,1750085443097,-632.15,0.00016438,2]
[366142715,1750085443107,-490.0,0.00016438,2]
[366142717,1750085443118,-490.0,0.00016438,2]
[366142720,1750085443129,-904.54,0.00016438,2]
[366142722,1750085443139,-490.0,0.00016438,2]
[366142723,1750085443149,-490.0,0.00016438,2]
[366142726,1750085443159,-490.0,0.00016438,2]
[366142728,1750085443169,-1009.38,0.00016438,2]
[366142730,1750085443179,-1095.25,0.00016438,2]
[366142732,1750085443189,-898.81,0.00016438,2]
[366142734,1750085443199,-490.0,0.00016438,2]
[366142736,1750085443209,-1343.95,0.00016438,2]
[366142738,1750085443218,-1156.19,0.00016438,2]
[366142740,1750085443229,-547.64046708,0.00016438,2]
[366142741,1750085443239,-490.0,0.00016438,2]
[366142743,1750085443249,-1477.63,0.00016438,2]
[366142744,1750085443259,-402.45488728,0.00016438,2]
[366142745,1750085443269,-568.4,0.00016438,2]
[366142746,1750085443280,-490.0,0.00016438,2]
[366142747,1750085443291,-490.0,0.00016438,2]
[366142748,1750085443302,-1071.71,0.00016438,2]
[366142749,1750085443312,-1216.58,0.00016438,2]
[366142750,1750085443323,-490.0,0.00016438,2]
[366142751,1750085443333,-490.0,0.00016438,2]
[366142752,1750085443343,-490.0,0.00016438,2]
[366142753,1750085443354,-490.0,0.00016438,2]
[366142755,1750085443364,-151.0,0.00016438,2]
[366142757,1750085443374,-490.0,0.00016438,2]
[366142759,1750085443385,-490.0,0.00016438,2]
[366142761,1750085443394,-215.86370102,0.00016438,2]
[366142763,1750085443405,-490.0,0.00016438,2]
[366142765,1750085443415,-490.0,0.00016438,2]
[366142767,1750085443425,-386.45404317,0.00016438,2]
[366142769,1750085443435,-490.0,0.00016438,2]
[366142771,1750085443445,-490.0,0.00016438,2]
[366142773,1750085443454,-490.0,0.00016438,2]
[366142775,1750085443464,-415.56596107,0.00016438,2]
[366142777,1750085443474,-393.636506,0.00016438,2]
[366142779,1750085443484,-490.0,0.00016438,2]
[366142781,1750085443494,-490.0,0.00016438,2]
[366142783,1750085443505,-393.636506,0.00016438,2]
[366142785,1750085443516,-887.06,0.00016438,2]
[366142787,1750085443526,-490.0,0.00016438,2]
[366142789,1750085443536,-490.0,0.00016438,2]
[366142792,1750085443547,-490.0,0.00016438,2]
[366142793,1750085443556,-490.0,0.00016438,2]
[366142795,1750085443569,-490.0,0.00016438,2]
[366142797,1750085443579,-490.0,0.00016438,2]
[366142798,1750085443588,-490.0,0.00016438,2]
[366142799,1750085443598,-490.0,0.00016438,2]
[366142800,1750085443610,-490.0,0.00016438,2]
[366142801,1750085443620,-1369.33,0.00016438,2]
[366142802,1750085443630,-1492.3,0.00016438,2]
[366142803,1750085443642,-874.58,0.00016438,2]
[366142804,1750085443653,-151.0,0.00016438,2]
[366142805,1750085443663,-658.45,0.00016438,2]
[366142806,1750085443673,-1535.9,0.00016438,2]
[366142807,1750085443683,-151.0,0.00016438,2]
[366142808,1750085443693,-490.0,0.00016438,2]
[366142809,1750085443703,-490.0,0.00016438,2]
[366142810,1750085443714,-1765.34,0.00016438,2]
[366142811,1750085443723,-490.0,0.00016438,2]
[366142812,1750085443733,-490.0,0.00016438,2]
[366142813,1750085443744,-490.0,0.00016438,2]
[366142814,1750085443755,-724.61,0.00016438,2]
[366142815,1750085443765,-956.4,0.00016438,2]
[366142816,1750085443775,-250.0,0.00016438,2]
[366142817,1750085443787,-490.0,0.00016438,2]
[366142818,1750085443796,-490.0,0.00016438,2]
[366142819,1750085443806,-490.0,0.00016438,2]
[366142820,1750085443815,-613.18,0.00016438,2]
[366142821,1750085443825,-490.0,0.00016438,2]
[366142822,1750085443836,-490.0,0.00016438,2]
[366142823,1750085443845,-2349.33,0.00016438,2]
[366142824,1750085443856,-1554.55,0.00016438,2]
[366142825,1750085443868,-490.0,0.00016438,2]
[366142826,1750085443879,-969.48,0.00016438,2]
[366142827,1750085443889,-683.14,0.00016438,2]
[366142828,1750085443899,-1094.8,0.00016438,2]
[366142829,1750085443908,-490.0,0.00016438,2]
[366142830,1750085443918,-165.175623,0.00016438,2]
[366142831,1750085443928,-490.0,0.00016438,2]
[366142832,1750085443938,-838.75,0.00016438,2]
[366142833,1750085443949,-493.77422281,0.00016438,2]
[366142834,1750085443959,-1090.713649,0.00016438,2]
[366142835,1750085443970,-780.68,0.00016438,2]
[366142836,1750085443980,-746.35,0.00016438,2]
[366142837,1750085443989,-165.175623,0.00016438,2]
[366142838,1750085443999,-151.0,0.00016438,2]
[366142839,1750085444010,-871.88,0.00016438,2]
[366142840,1750085444020,-1090.713649,0.00016438,2]
[366142841,1750085444030,-481.94041308,0.00016438,2]
[366142842,1750085444042,-490.0,0.00016438,2]
[366142843,1750085444053,-490.0,0.00016438,2]
[366142844,1750085444063,-490.0,0.00016438,2]
[366142845,1750085444073,-381.45678869,0.00016438,2]
[366142846,1750085444084,-668.22,0.00016438,2]
[366142847,1750085444094,-490.0,0.00016438,2]
[366142848,1750085444104,-490.0,0.00016438,2]
[366142849,1750085444114,-1136.16,0.00016438,2]
[366142850,1750085444125,-151.0,0.00016438,2]
[366142851,1750085444136,-490.0,0.00016438,2]
[366142852,1750085444159,-940.11,0.00016438,2]
[366142853,1750085444169,-490.0,0.00016438,2]
[366142854,1750085444179,-1066.89,0.00016438,2]
[366142855,1750085444189,-919.81,0.00016438,2]
[366142856,1750085444200,-490.0,0.00016438,2]
[366142857,1750085444210,-7025.05,0.00016438,2]
[366142858,1750085444220,-490.0,0.00016438,2]
[366142859,1750085444229,-4600.74,0.00016438,2]
[366142860,1750085444240,-3582.35,0.00016438,2]
[366142861,1750085444251,-2855.05,0.00016438,2]
[366142862,1750085444262,-490.0,0.00016438,2]
[366142863,1750085444272,-490.0,0.00016438,2]
[366142864,1750085444283,-490.0,0.00016438,2]
[366142865,1750085444297,-586.94746553,0.00016438,2]
[366142866,1750085444306,-1416.13,0.00016438,2]
[366142867,1750085444316,-490.0,0.00016438,2]
[366142868,1750085444327,-1172.28,0.00016438,2]
[366142869,1750085444337,-490.0,0.00016438,2]
[366142870,1750085444347,-506.21,0.00016438,2]
[366142871,1750085444357,-12698.93,0.00016438,2]
[366142872,1750085444367,-14347.48,0.00016438,2]
[366142873,1750085444377,-490.0,0.00016438,2]
[366142874,1750085444387,-1722.47,0.00016438,2]
[366142875,1750085444396,-490.0,0.00016438,2]
[366142876,1750085444406,-922.46,0.00016438,2]
[366142877,1750085444415,-490.0,0.00016438,2]
[366142878,1750085444425,-530.0,0.00016438,2]
[366142879,1750085444434,-3271.12,0.00016438,2]
[366142880,1750085444443,-994.13,0.00016438,2]
[366142881,1750085444453,-921.32,0.00016438,2]
[366142882,1750085444462,-1985.05,0.00016438,2]
[366142883,1750085444472,-490.0,0.00016438,2]
[366142884,1750085444482,-730.56,0.00016438,2]
[366142885,1750085444491,-490.0,0.00016438,2]
[366142886,1750085444501,-1779.82,0.00016438,2]
[366142887,1750085444510,-490.0,0.00016438,2]
[366142888,1750085444520,-587.05,0.00016438,2]
[366142889,1750085444529,-2310.65,0.00016438,2]
[366142890,1750085444542,-490.0,0.00016438,2]
[366142891,1750085444552,-1269.3,0.00016438,2]
[366142892,1750085444565,-3230.74,0.00016438,2]
[366142893,1750085444575,-1446.71,0.00016438,2]
[366142894,1750085444584,-490.0,0.00016438,2]
[366142895,1750085444594,-682.14,0.00016438,2]
[366142896,1750085444604,-1313.55,0.00016438,2]
[366142897,1750085444615,-596.68,0.00016438,2]
[366142898,1750085444625,-711.26,0.00016438,2]
[366142899,1750085444635,-1540.3,0.00016438,2]
[366142900,1750085444646,-152.44944783,0.00016438,2]
[366142901,1750085444656,-1199.04,0.00016438,2]
[366142902,1750085444666,-204.446949,0.00016438,2]
[366142903,1750085444676,-495.65,0.00016438,2]
[366142904,1750085444685,-490.0,0.00016438,2]
[366142905,1750085444695,-490.0,0.00016438,2]
[366142906,1750085444705,-490.0,0.00016438,2]
[366142907,1750085444715,-882.83,0.00016438,2]
[366142908,1750085444724,-981.06,0.00016438,2]
[366142909,1750085444735,-3924.34,0.00016438,2]
[366142910,1750085444744,-204.446949,0.00016438,2]
[366142911,1750085444754,-522.51,0.00016438,2]
[366142912,1750085444764,-490.0,0.00016438,2]
[366142913,1750085444773,-1124.52,0.00016438,2]
[366142914,1750085444783,-564.69,0.00016438,2]
[366142915,1750085444795,-490.0,0.00016438,2]
[366142916,1750085444804,-151.0,0.00016438,2]
[366142917,1750085444814,-490.0,0.00016438,2]
[366142918,1750085444824,-1873.73,0.00016438,2]
[366142919,1750085444833,-929.4,0.00016438,2]
[366142920,1750085444843,-490.0,0.00016438,2]
[366142921,1750085444854,-828.81,0.00016438,2]
[366142922,1750085444864,-1171.8,0.00016438,2]
[366142923,1750085444874,-509.58286633,0.00016438,2]
[366142924,1750085444884,-2637.35,0.00016438,2]
[366142925,1750085444894,-2214.56,0.00016438,2]
[366142926,1750085444904,-490.0,0.00016438,2]
[366142927,1750085444914,-1176.5,0.00016438,2]
[366142928,1750085444923,-1496.61,0.00016438,2]
[366142929,1750085444934,-1553.96,0.00016438,2]
[366142930,1750085444943,-876.96,0.00016438,2]
[366142931,1750085444954,-2813.38,0.00016438,2]
[366142932,1750085444964,-1759.52,0.00016438,2]
[366142933,1750085444974,-490.0,0.00016438,2]
[366142934,1750085444984,-1567.16,0.00016438,2]
[366142935,1750085444993,-5139.14,0.00016438,2]
[366142936,1750085445003,-2508.73,0.00016438,2]
[366142937,1750085445013,-490.0,0.00016438,2]
[366142938,1750085445024,-490.0,0.00016438,2]
[366142939,1750085445035,-490.0,0.00016438,2]
[366142940,1750085445046,-5096.53,0.00016438,2]
[366142941,1750085445056,-1207.79,0.00016438,2]
[366142942,1750085445066,-2054.25,0.00016438,2]
[366142943,1750085445077,-1118.22,0.00016438,2]